[Event "African Online-ch U20-Open 2021"]
[Site "Online"]
[Date "2021.02.01"]
[Round "6.7"]
[White "Joao Farisse"]
[Black "Vasco Mateus Felizardo Viageir"]
[Result "1/2-1/2"]
[ECO "D35"]
[WhiteElo "1574"]
[BlackElo "1862"]
[Annotator "NA RC"]
[PlyCount "132"]
[EventDate "2021.02.01"]
[EventType "swiss"]
[EventCountry "NET"]
[SourceTitle "playchess.com"]
[Source "ChessBase"]
[SourceQuality "1"]
[TimeControl "1500+10"]

1. c4 {[%emt 0:00:00]} e6 {[%emt 0:00:11]} 2. Nc3 {[%emt 0:00:10]} d5 {[%emt 0:00:19]} 3. cxd5 {[%emt 0:00:08]} exd5 {[%emt 0:00:03]} 4. d4 {[%emt 0:00:30]} Nf6 {[%emt 0:00:04]} 5. Nf3 {[%emt 0:00:17]} h6 {[%emt 0:00:06]} 6. h3 {[%emt 0:00:02]} c6 {[%emt 0:00:05]} 7. Bf4 {[%emt 0:00:09]} Bd6 {[%emt 0:00:13]} 8. Ne5 {[%emt 0:00:06]} Qe7 {[%emt 0:01:06]} 9. e3 {[%emt 0:01:13]} O-O {[%emt 0:00:45]} 10. Bd3 {[%emt 0:00:10]} Re8 {[%emt 0:00:20]} 11. O-O {[%emt 0:00:56]} Nbd7 {[%emt 0:00:12]} 12. Nxd7 {[%emt 0:00:05]} Bxd7 {[%emt 0:00:02]} 13. Bxd6 {[%emt 0:00:08]} Qxd6 {[%emt 0:00:01]} 14. Rb1 {[%emt 0:00:33]} a5 {[%emt 0:03:21]} 15. a4 {[%emt 0:01:10]} Re7 {[%emt 0:00:27]} 16. Qc2 {[%emt 0:01:37]} Rae8 {[%emt 0:00:36]} 17. Bf5 {[%emt 0:00:22]} Bxf5 {[%emt 0:00:48]} 18. Qxf5 {[%emt 0:00:04]} g6 {[%emt 0:00:01]} 19. Qf3 {[%emt 0:00:29]} Kg7 {[%emt 0:00:04]} 20. Rfd1 {[%emt 0:01:01]} Qb4 {[%emt 0:00:10]} 21. Qe2 {[%emt 0:01:13]} c5 {[%emt 0:02:06]} 22. Qb5 {[%emt 0:02:14]} c4 {[%emt 0:00:11]} 23. Na2 {[%emt 0:01:29]} Qxb5 {[%emt 0:00:10]} 24. axb5 {[%emt 0:00:02]} Re6 {[%emt 0:00:24]} 25. b3 {[%emt 0:01:06]} Rc8 {[%emt 0:01:13]} 26. bxc4 {[%emt 0:00:24]} Rxc4 {[%emt 0:00:10]} 27. Rdc1 {[%emt 0:00:13]} Ra4 {[%emt 0:00:08]} 28. Nc3 {[%emt 0:00:25]} Rc4 {[%emt 0:00:13]} 29. Ne2 {[%emt 0:00:36]} Rxc1+ {[%emt 0:00:16]} 30. Nxc1 {[%emt 0:00:15]} Ne4 {[%emt 0:00:08]} 31. Nd3 {[%emt 0:00:20]} Rb6 {[%emt 0:00:12]} 32. Nc5 {[%emt 0:00:28]} Nc3 {[%emt 0:00:13]} 33. Rb3 {[%emt 0:00:29]} Nxb5 {[%emt 0:02:47]} 34. Na4 {[%emt 0:00:34]} Rc6 {[%emt 0:00:08]} 35. Rxb5 {[%emt 0:00:05]} Rc1+ {[%emt 0:00:07]} 36. Kh2 {[%emt 0:00:04]} Ra1 {[%emt 0:00:23]} 37. Nc5 {[%emt 0:00:25]} a4 {[%emt 0:00:05]} 38. Rxb7 {[%emt 0:00:14]} h5 {[%emt 0:00:22]} 39. Ra7 {[%emt 0:00:32]} a3 {[%emt 0:00:03]} 40. e4 {[%emt 0:00:33]} dxe4 {[%emt 0:00:23]} 41. Nxe4 {[%emt 0:00:18]} a2 {[%emt 0:00:20]} 42. Nc3 {[%emt 0:00:40]} Rc1 {[%emt 0:00:03]} 43. Nxa2 {[%emt 0:00:04]} Rd1 {[%emt 0:00:17]} 44. d5 {[%emt 0:00:06]} Rxd5 {[%emt 0:00:05]} 45. Nc3 {[%emt 0:00:11]} Rd2 {[%emt 0:00:06]} 46. Ne4 {[%emt 0:00:15]} Rd5 {[%emt 0:00:23]} 47. f3 {[%emt 0:00:12]} h4 {[%emt 0:00:06]} 48. Nc3 {[%emt 0:00:31]} Rc5 {[%emt 0:00:10]} 49. Ne2 {[%emt 0:00:10]} Re5 {[%emt 0:00:26]} 50. Nd4 {[%emt 0:00:34]} Rd5 {[%emt 0:00:47]} 51. Ne6+ {[%emt 0:00:31]} Kf6 {[%emt 0:00:12]} 52. Nf4 {[%emt 0:00:18]} Rd2 {[%emt 0:00:18]} 53. Ra5 {[%emt 0:00:20]} Kg7 {[%emt 0:00:41]} 54. Kg1 {[%emt 0:00:46]} Rd4 {[%emt 0:00:59]} 55. Ne2 {[%emt 0:00:12]} Rb4 {[%emt 0:00:08]} 56. Kf2 {[%emt 0:00:20]} Kf6 {[%emt 0:00:11]} 57. Rd5 {[%emt 0:00:06]} g5 {[%emt 0:00:16]} 58. f4 {[%emt 0:00:15]} gxf4 {[%emt 0:00:05]} 59. Rd4 {[%emt 0:00:03]} Rb7 {[%emt 0:00:51]} 60. Rxf4+ {[%emt 0:01:01]} Ke5 {[%emt 0:01:09]} 61. Rxh4 {[%emt 0:00:24]} f5 {[%emt 0:00:03]} 62. Ra4 {[%emt 0:00:06]} Rb2 {[%emt 0:00:24]} 63. g4 {[%emt 0:00:47]} fxg4 {[%emt 0:00:06]} 64. Rxg4 {[%emt 0:00:04]} Kf5 {[%emt 0:00:11]} 65. Rg3 {[%emt 0:01:00]} Ra2 {[%emt 0:00:48]} 66. h4 {[%emt 0:00:21]} Ra4 {[%emt 0:02:31]} 1/2-1/2

[Event "African Online-ch U20-Open 2021"]
[Site "Online"]
[Date "2021.02.01"]
[Round "6.10"]
[White "Selogelo Othata"]
[Black "Elayeb, Med Yessine"]
[Result "0-1"]
[ECO "B33"]
[WhiteElo "1725"]
[BlackElo "1666"]
[Annotator "NA RC"]
[PlyCount "162"]
[EventDate "2021.02.01"]
[EventType "swiss"]
[EventCountry "NET"]
[SourceTitle "playchess.com"]
[Source "ChessBase"]
[SourceQuality "1"]
[TimeControl "1500+10"]

1. e4 {[%emt 0:00:00]} c5 {[%emt 0:00:05]} 2. Nf3 {[%emt 0:00:06]} Nc6 {[%emt 0:00:02]} 3. d4 {[%emt 0:00:04]} cxd4 {[%emt 0:00:01]} 4. Nxd4 {[%emt 0:00:01]} Nf6 {[%emt 0:00:02]} 5. Nc3 {[%emt 0:00:03]} e5 {[%emt 0:00:01]} 6. Ndb5 {[%emt 0:00:03]} d6 {[%emt 0:00:03]} 7. Bg5 {[%emt 0:00:09]} a6 {[%emt 0:00:02]} 8. Na3 {[%emt 0:00:04]} b5 {[%emt 0:00:03]} 9. Nd5 {[%emt 0:00:07]} Be7 {[%emt 0:00:03]} 10. Bxf6 {[%emt 0:00:58]} Bxf6 {[%emt 0:00:01]} 11. c3 {[%emt 0:00:06]} Rb8 {[%emt 0:00:28]} 12. Nc2 {[%emt 0:00:07]} Bg5 {[%emt 0:00:04]} 13. Bd3 {[%emt 0:00:44]} O-O {[%emt 0:00:20]} 14. h4 {[%emt 0:02:06]} Bh6 {[%emt 0:00:26]} 15. g4 {[%emt 0:01:19]} g6 {[%emt 0:02:26]} 16. Qf3 {[%emt 0:00:21]} Bg7 {[%emt 0:04:56]} 17. g5 {[%emt 0:00:55]} f5 {[%emt 0:01:22]} 18. gxf6 {[%emt 0:02:20]} Bxf6 {[%emt 0:00:18]} 19. Qg3 {[%emt 0:00:16]} Rb7 {[%emt 0:04:12]} 20. Nxf6+ {[%emt 0:00:27]} Qxf6 {[%emt 0:00:36]} 21. Ne3 {[%emt 0:00:26]} Rbf7 {[%emt 0:01:45]} 22. Rh2 {[%emt 0:00:46]} Ne7 {[%emt 0:02:51]} 23. a4 {[%emt 0:01:44]} Qf4 {[%emt 0:03:07]} 24. axb5 {[%emt 0:01:30]} Qxg3 {[%emt 0:01:35]} 25. fxg3 {[%emt 0:00:12]} Rf3 {[%emt 0:00:07]} 26. Bc4+ {[%emt 0:03:35]} Kg7 {[%emt 0:00:07]} 27. Ke2 {[%emt 0:01:10]} axb5 {[%emt 0:00:29]} 28. Bxb5 {[%emt 0:00:07]} Rxg3 {[%emt 0:00:16]} 29. Ra7 {[%emt 0:00:16]} Rf7 {[%emt 0:00:43]} 30. Bc4 {[%emt 0:00:23]} d5 {[%emt 0:00:34]} 31. Nxd5 {[%emt 0:01:16]} Bg4+ {[%emt 0:00:26]} 32. Kd2 {[%emt 0:00:13]} Nxd5 {[%emt 0:00:23]} 33. Rxf7+ {[%emt 0:00:08]} Kxf7 {[%emt 0:00:01]} 34. Bxd5+ {[%emt 0:00:03]} Be6 {[%emt 0:00:08]} 35. b4 {[%emt 0:00:52]} Rg4 {[%emt 0:01:48]} 36. Kd3 {[%emt 0:01:04]} Ke7 {[%emt 0:00:18]} 37. Bxe6 {[%emt 0:00:05]} Kxe6 {[%emt 0:00:01]} 38. Rh3 {[%emt 0:00:12]} Rf4 {[%emt 0:00:08]} 39. b5 {[%emt 0:01:11]} Kd6 {[%emt 0:00:23]} 40. c4 {[%emt 0:01:19]} Kc5 {[%emt 0:00:06]} 41. h5 {[%emt 0:00:32]} g5 {[%emt 0:00:11]} 42. h6 {[%emt 0:00:07]} Kd6 {[%emt 0:00:37]} 43. Rh5 {[%emt 0:01:38]} Rg4 {[%emt 0:00:03]} 44. Kc3 {[%emt 0:00:32]} Kc5 {[%emt 0:00:22]} 45. Kd3 {[%emt 0:00:19]} Kd6 {[%emt 0:00:11]} 46. Rh3 {[%emt 0:00:06]} Rf4 {[%emt 0:00:05]} 47. Rg3 {[%emt 0:00:07]} g4 {[%emt 0:00:03]} 48. Rg1 {[%emt 0:00:21]} Kc5 {[%emt 0:00:17]} 49. Rb1 {[%emt 0:00:33]} Rf3+ {[%emt 0:00:17]} 50. Kc2 {[%emt 0:00:16]} Kxc4 {[%emt 0:00:06]} 51. b6 {[%emt 0:00:17]} Rf2+ {[%emt 0:00:13]} 52. Kd1 {[%emt 0:00:30]} Rf1+ {[%emt 0:00:04]} 53. Kc2 {[%emt 0:00:03]} Rxb1 {[%emt 0:00:04]} 54. Kxb1 {[%emt 0:00:03]} g3 {[%emt 0:00:01]} 55. b7 {[%emt 0:00:02]} g2 {[%emt 0:00:01]} 56. b8=Q {[%emt 0:00:08]} g1=Q+ {[%emt 0:00:03]} 57. Ka2 {[%emt 0:00:15]} Qf2+ {[%emt 0:00:10]} 58. Ka3 {[%emt 0:00:26]} Qe3+ {[%emt 0:00:03]} 59. Ka2 {[%emt 0:00:35]} Qd2+ {[%emt 0:00:24]} 60. Ka3 {[%emt 0:00:26]} Qa5+ {[%emt 0:00:07]} 61. Kb2 {[%emt 0:00:06]} Qb4+ {[%emt 0:00:08]} 62. Qxb4+ {[%emt 0:00:03]} Kxb4 {[%emt 0:00:01]} 63. Kc2 {[%emt 0:00:08]} Kc4 {[%emt 0:00:02]} 64. Kd2 {[%emt 0:00:03]} Kd4 {[%emt 0:00:01]} 65. Kd1 {[%emt 0:00:08]} Ke3 {[%emt 0:01:10]} 66. Ke1 {[%emt 0:00:06]} Kf3 {[%emt 0:00:14]} 67. Kf1 {[%emt 0:00:04]} Kg4 {[%emt 0:00:06]} 68. Kg2 {[%emt 0:00:59]} Kg5 {[%emt 0:00:12]} 69. Kg3 {[%emt 0:00:12]} Kxh6 {[%emt 0:00:01]} 70. Kg4 {[%emt 0:00:06]} Kg6 {[%emt 0:00:02]} 71. Kh4 {[%emt 0:00:03]} h5 {[%emt 0:00:04]} 72. Kg3 {[%emt 0:00:05]} Kg5 {[%emt 0:00:02]} 73. Kh3 {[%emt 0:00:03]} Kf4 {[%emt 0:00:04]} 74. Kh4 {[%emt 0:00:29]} Kxe4 {[%emt 0:00:05]} 75. Kxh5 {[%emt 0:00:01]} Kf3 {[%emt 0:00:04]} 76. Kh4 {[%emt 0:00:04]} e4 {[%emt 0:00:01]} 77. Kh3 {[%emt 0:00:03]} e3 {[%emt 0:00:03]} 78. Kh2 {[%emt 0:00:02]} e2 {[%emt 0:00:13]} 79. Kh3 {[%emt 0:00:02]} e1=Q {[%emt 0:00:07]} 80. Kh2 {[%emt 0:00:02]} Qg3+ {[%emt 0:00:02]} 81. Kh1 {[%emt 0:00:03]} Qg2# {[%emt 0:00:02]} 0-1

[Event "African Online-ch U20-Open 2021"]
[Site "Online"]
[Date "2021.02.01"]
[Round "6.11"]
[White "Lion, Pierre"]
[Black "van der Merwe, Alexander"]
[Result "1-0"]
[ECO "B92"]
[WhiteElo "1586"]
[BlackElo "1655"]
[Annotator "NA RC"]
[PlyCount "67"]
[EventDate "2021.02.01"]
[EventType "swiss"]
[EventCountry "NET"]
[SourceTitle "playchess.com"]
[Source "ChessBase"]
[SourceQuality "1"]
[TimeControl "1500+10"]

1. e4 {[%emt 0:00:00]} c5 {[%emt 0:00:02]} 2. Nf3 {[%emt 0:00:24]} d6 {[%emt 0:00:05]} 3. d4 {[%emt 0:00:32]} cxd4 {[%emt 0:00:06]} 4. Nxd4 {[%emt 0:00:05]} Nf6 {[%emt 0:00:03]} 5. Nc3 {[%emt 0:00:12]} a6 {[%emt 0:00:04]} 6. Be2 {[%emt 0:00:09]} e5 {[%emt 0:00:10]} 7. Nf5 {[%emt 0:00:29]} Bxf5 {[%emt 0:00:37]} 8. exf5 {[%emt 0:00:08]} Be7 {[%emt 0:02:01]} 9. Bf3 {[%emt 0:00:27]} Nc6 {[%emt 0:00:31]} 10. Be3 {[%emt 0:00:38]} Qa5 {[%emt 0:01:00]} 11. Qd2 {[%emt 0:00:46]} Rd8 {[%emt 0:01:19]} 12. O-O-O {[%emt 0:00:16]} O-O {[%emt 0:01:52]} 13. Kb1 {[%emt 0:00:14]} Kh8 {[%emt 0:04:59]} 14. g4 {[%emt 0:00:26]} d5 {[%emt 0:00:49]} 15. Nxd5 {[%emt 0:01:09]} Nb4 {[%emt 0:01:48]} 16. a3 {[%emt 0:01:23]} Nfxd5 {[%emt 0:01:37]} 17. Bxd5 {[%emt 0:00:07]} Qxd5 {[%emt 0:02:56]} 18. axb4 {[%emt 0:00:11]} Qe4 {[%emt 0:01:03]} 19. Qe2 {[%emt 0:00:45]} h6 {[%emt 0:00:59]} 20. f3 {[%emt 0:01:09]} Qxb4 {[%emt 0:00:12]} 21. h4 {[%emt 0:01:31]} Rxd1+ {[%emt 0:01:08]} 22. Rxd1 {[%emt 0:00:04]} Bxh4 {[%emt 0:01:31]} 23. Qh2 {[%emt 0:00:03]} Qe7 {[%emt 0:00:28]} 24. Rh1 {[%emt 0:00:14]} Bg5 {[%emt 0:00:14]} 25. Bxg5 {[%emt 0:00:04]} Qxg5 {[%emt 0:00:02]} 26. Qxe5 {[%emt 0:00:02]} Qd8 {[%emt 0:01:20]} 27. Rxh6+ {[%emt 0:00:08]} Kg8 {[%emt 0:00:06]} 28. Rh1 {[%emt 0:00:05]} Re8 {[%emt 0:00:14]} 29. Qh2 {[%emt 0:00:05]} Kf8 {[%emt 0:00:41]} 30. Qh8+ {[%emt 0:00:09]} Ke7 {[%emt 0:00:02]} 31. Qxg7 {[%emt 0:00:10]} Qd5 {[%emt 0:00:22]} 32. Kc1 {[%emt 0:01:04]} Qc4 {[%emt 0:01:09]} 33. Qe5+ {[%emt 0:00:12]} Kd7 {[%emt 0:00:36]} 34. Rd1+ {[%emt 0:00:04]} 1-0

[Event "African Online-ch U20-Open 2021"]
[Site "Online"]
[Date "2021.02.01"]
[Round "6.12"]
[White "George Samir, David"]
[Black "Fourie, Brandon"]
[Result "0-1"]
[ECO "B33"]
[WhiteElo "1775"]
[BlackElo "1583"]
[Annotator "NA RC"]
[PlyCount "104"]
[EventDate "2021.02.01"]
[EventType "swiss"]
[EventCountry "NET"]
[SourceTitle "playchess.com"]
[Source "ChessBase"]
[SourceQuality "1"]
[TimeControl "1500+10"]

1. e4 {[%emt 0:00:00]} c5 {[%emt 0:00:06]} 2. Nf3 {[%emt 0:00:07]} Nc6 {[%emt 0:00:02]} 3. d4 {[%emt 0:00:02]} cxd4 {[%emt 0:00:01]} 4. Nxd4 {[%emt 0:00:02]} Nf6 {[%emt 0:00:02]} 5. Nc3 {[%emt 0:00:03]} e5 {[%emt 0:00:01]} 6. Ndb5 {[%emt 0:00:02]} d6 {[%emt 0:00:01]} 7. Bg5 {[%emt 0:00:09]} a6 {[%emt 0:00:02]} 8. Na3 {[%emt 0:00:03]} b5 {[%emt 0:00:02]} 9. Nd5 {[%emt 0:00:02]} Be7 {[%emt 0:00:01]} 10. Bxf6 {[%emt 0:00:03]} Bxf6 {[%emt 0:00:01]} 11. c4 {[%emt 0:00:02]} b4 {[%emt 0:00:07]} 12. Nc2 {[%emt 0:00:02]} a5 {[%emt 0:00:23]} 13. h4 {[%emt 0:00:03]} O-O {[%emt 0:00:30]} 14. g3 {[%emt 0:01:02]} g6 {[%emt 0:01:04]} 15. Bg2 {[%emt 0:01:23]} Bg7 {[%emt 0:00:04]} 16. h5 {[%emt 0:00:45]} Ne7 {[%emt 0:00:38]} 17. h6 {[%emt 0:00:09]} Bh8 {[%emt 0:00:10]} 18. Nce3 {[%emt 0:00:08]} Ra7 {[%emt 0:00:40]} 19. Qf3 {[%emt 0:00:48]} f5 {[%emt 0:00:16]} 20. O-O {[%emt 0:02:03]} Be6 {[%emt 0:00:38]} 21. Nxe7+ {[%emt 0:01:24]} Qxe7 {[%emt 0:00:13]} 22. exf5 {[%emt 0:00:14]} gxf5 {[%emt 0:00:52]} 23. Nd5 {[%emt 0:00:13]} Qf7 {[%emt 0:00:18]} 24. Qe3 {[%emt 0:00:11]} f4 {[%emt 0:02:18]} 25. gxf4 {[%emt 0:00:56]} exf4 {[%emt 0:00:48]} 26. Nxf4 {[%emt 0:00:21]} Qxf4 {[%emt 0:01:50]} 27. Qxe6+ {[%emt 0:00:08]} Raf7 {[%emt 0:00:11]} 28. Qe3 {[%emt 0:00:34]} Qxe3 {[%emt 0:00:29]} 29. fxe3 {[%emt 0:00:09]} Rxf1+ {[%emt 0:00:03]} 30. Rxf1 {[%emt 0:00:04]} Rxf1+ {[%emt 0:00:05]} 31. Kxf1 {[%emt 0:00:05]} Bxb2 {[%emt 0:00:03]} 32. Ke2 {[%emt 0:00:09]} a4 {[%emt 0:00:42]} 33. Bd5+ {[%emt 0:00:25]} Kf8 {[%emt 0:00:12]} 34. Kf3 {[%emt 0:00:17]} b3 {[%emt 0:00:40]} 35. c5 {[%emt 0:00:06]} dxc5 {[%emt 0:00:16]} 36. axb3 {[%emt 0:00:10]} a3 {[%emt 0:00:05]} 37. b4 {[%emt 0:00:06]} cxb4 {[%emt 0:00:03]} 38. Kf4 {[%emt 0:00:14]} Ke7 {[%emt 0:00:24]} 39. Ke4 {[%emt 0:00:43]} Kf6 {[%emt 0:00:15]} 40. Kf4 {[%emt 0:00:17]} Kg6 {[%emt 0:00:40]} 41. e4 {[%emt 0:00:04]} Kxh6 {[%emt 0:00:02]} 42. Kf5 {[%emt 0:00:09]} Kg7 {[%emt 0:00:10]} 43. e5 {[%emt 0:00:16]} h5 {[%emt 0:00:26]} 44. Kg5 {[%emt 0:00:16]} Bxe5 {[%emt 0:00:10]} 45. Kxh5 {[%emt 0:00:05]} Kf6 {[%emt 0:00:07]} 46. Kg4 {[%emt 0:00:07]} Bd6 {[%emt 0:00:13]} 47. Bb3 {[%emt 0:01:43]} Ke5 {[%emt 0:00:08]} 48. Kf3 {[%emt 0:00:03]} Kd4 {[%emt 0:00:05]} 49. Ke2 {[%emt 0:00:14]} Kc3 {[%emt 0:00:01]} 50. Be6 {[%emt 0:00:18]} b3 {[%emt 0:00:31]} 51. Kd1 {[%emt 0:00:20]} Kb2 {[%emt 0:00:04]} 52. Kd2 {[%emt 0:00:11]} a2 {[%emt 0:00:05]} 0-1

[Event "African Online-ch U20-Open 2021"]
[Site "Online"]
[Date "2021.02.01"]
[Round "6.13"]
[White "Mena, Martin"]
[Black "Mcligeyo, Robert"]
[Result "1-0"]
[ECO "E10"]
[WhiteElo "1776"]
[BlackElo "1688"]
[Annotator "NA RC"]
[PlyCount "49"]
[EventDate "2021.02.01"]
[EventType "swiss"]
[EventCountry "NET"]
[SourceTitle "playchess.com"]
[Source "ChessBase"]
[SourceQuality "1"]
[TimeControl "1500+10"]

1. d4 {[%emt 0:00:00]} Nf6 {[%emt 0:00:05]} 2. Nf3 {[%emt 0:00:04]} c5 {[%emt 0:00:03]} 3. d5 {[%emt 0:00:06]} e6 {[%emt 0:00:03]} 4. c4 {[%emt 0:00:13]} b5 {[%emt 0:00:02]} 5. Bg5 {[%emt 0:07:59]} exd5 {[%emt 0:00:13]} 6. cxd5 {[%emt 0:00:20]} d6 {[%emt 0:00:04]} 7. Nc3 {[%emt 0:00:28]} Be7 {[%emt 0:00:05]} 8. Nxb5 {[%emt 0:03:04]} O-O {[%emt 0:00:05]} 9. e3 {[%emt 0:03:52]} Ba6 {[%emt 0:01:25]} 10. Bc4 {[%emt 0:04:09]} Bxb5 {[%emt 0:00:05]} 11. Bxb5 {[%emt 0:00:16]} Qa5+ {[%emt 0:00:04]} 12. Qd2 {[%emt 0:00:07]} Qxb5 {[%emt 0:00:03]} 13. Qc2 {[%emt 0:03:47]} Nxd5 {[%emt 0:00:18]} 14. h4 {[%emt 0:00:49]} Bf6 {[%emt 0:00:25]} 15. Rd1 {[%emt 0:01:57]} Nb4 {[%emt 0:00:21]} 16. Qe4 {[%emt 0:00:10]} Qc6 {[%emt 0:00:46]} 17. Qg4 {[%emt 0:00:12]} Nd7 {[%emt 0:00:45]} 18. h5 {[%emt 0:00:15]} Bxg5 {[%emt 0:01:29]} 19. Nxg5 {[%emt 0:00:07]} Ne5 {[%emt 0:00:09]} 20. Qf5 {[%emt 0:00:08]} g6 {[%emt 0:04:49]} 21. hxg6 {[%emt 0:00:09]} hxg6 {[%emt 0:00:03]} 22. Qf6 {[%emt 0:00:12]} Nc2+ {[%emt 0:01:06]} 23. Kf1 {[%emt 0:00:09]} Nxe3+ {[%emt 0:01:25]} 24. fxe3 {[%emt 0:00:08]} Qb5+ {[%emt 0:00:04]} 25. Kg1 {[%emt 0:00:06]} 1-0

[Event "African Online-ch U20-Open 2021"]
[Site "Online"]
[Date "2021.02.01"]
[Round "6.14"]
[White "Pungo, Honorato"]
[Black "Ofile Masilo"]
[Result "1/2-1/2"]
[ECO "B90"]
[WhiteElo "1550"]
[BlackElo "1457"]
[Annotator "NA RC"]
[PlyCount "214"]
[EventDate "2021.02.01"]
[EventType "swiss"]
[EventCountry "NET"]
[SourceTitle "playchess.com"]
[Source "ChessBase"]
[SourceQuality "1"]
[TimeControl "1500+10"]

1. e4 {[%emt 0:00:00]} c5 {[%emt 0:00:09]} 2. Nf3 {[%emt 0:00:03]} d6 {[%emt 0:00:17]} 3. d4 {[%emt 0:00:03]} cxd4 {[%emt 0:00:07]} 4. Nxd4 {[%emt 0:00:02]} Nf6 {[%emt 0:00:05]} 5. Nc3 {[%emt 0:00:03]} a6 {[%emt 0:00:03]} 6. Bd3 {[%emt 0:00:06]} e5 {[%emt 0:00:25]} 7. Nb3 {[%emt 0:00:04]} Be7 {[%emt 0:00:12]} 8. O-O {[%emt 0:00:03]} O-O {[%emt 0:00:03]} 9. h3 {[%emt 0:00:02]} h6 {[%emt 0:00:13]} 10. f4 {[%emt 0:00:03]} Nc6 {[%emt 0:00:12]} 11. Kh1 {[%emt 0:00:08]} b5 {[%emt 0:00:11]} 12. a4 {[%emt 0:00:04]} b4 {[%emt 0:00:11]} 13. Ne2 {[%emt 0:00:14]} Be6 {[%emt 0:00:41]} 14. Nd2 {[%emt 0:00:26]} a5 {[%emt 0:01:22]} 15. b3 {[%emt 0:00:08]} Qc7 {[%emt 0:01:17]} 16. Bb2 {[%emt 0:00:05]} Rac8 {[%emt 0:01:43]} 17. Qe1 {[%emt 0:00:34]} exf4 {[%emt 0:00:53]} 18. Nxf4 {[%emt 0:00:06]} Ne5 {[%emt 0:00:07]} 19. Bxe5 {[%emt 0:00:35]} dxe5 {[%emt 0:00:04]} 20. Nxe6 {[%emt 0:00:09]} fxe6 {[%emt 0:00:06]} 21. Nc4 {[%emt 0:00:19]} Nh5 {[%emt 0:01:31]} 22. g3 {[%emt 0:01:51]} Rxf1+ {[%emt 0:04:23]} 23. Bxf1 {[%emt 0:00:10]} Rf8 {[%emt 0:01:18]} 24. Be2 {[%emt 0:00:27]} Nf6 {[%emt 0:00:25]} 25. Bd3 {[%emt 0:00:38]} Bc5 {[%emt 0:00:44]} 26. Qe2 {[%emt 0:00:09]} Nh7 {[%emt 0:01:32]} 27. Rf1 {[%emt 0:00:12]} Ng5 {[%emt 0:01:52]} 28. Rxf8+ {[%emt 0:00:17]} Kxf8 {[%emt 0:01:08]} 29. Kg2 {[%emt 0:00:05]} Kg8 {[%emt 0:00:35]} 30. h4 {[%emt 0:00:21]} Nf7 {[%emt 0:02:26]} 31. Qh5 {[%emt 0:00:26]} Bd4 {[%emt 0:00:58]} 32. Qg6 {[%emt 0:00:51]} Nd8 {[%emt 0:01:49]} 33. Qg4 {[%emt 0:00:42]} Qf7 {[%emt 0:02:21]} 34. Qf3 {[%emt 0:00:07]} Qxf3+ {[%emt 0:00:11]} 35. Kxf3 {[%emt 0:00:06]} Nc6 {[%emt 0:00:05]} 36. Kg4 {[%emt 0:01:18]} g6 {[%emt 0:00:22]} 37. Nd6 {[%emt 0:00:25]} Bc5 {[%emt 0:00:23]} 38. Nb7 {[%emt 0:00:47]} Bb6 {[%emt 0:00:30]} 39. Nd6 {[%emt 0:00:10]} Bc5 {[%emt 0:00:09]} 40. Nc4 {[%emt 0:00:04]} Bd4 {[%emt 0:00:07]} 41. Kf3 {[%emt 0:00:05]} Kg7 {[%emt 0:00:09]} 42. Nd2 {[%emt 0:00:09]} Bc3 {[%emt 0:00:10]} 43. Nf1 {[%emt 0:00:12]} Nd4+ {[%emt 0:00:09]} 44. Kg2 {[%emt 0:00:12]} Kf6 {[%emt 0:00:27]} 45. Nh2 {[%emt 0:00:21]} Bd2 {[%emt 0:00:08]} 46. Ng4+ {[%emt 0:00:10]} Kg7 {[%emt 0:00:06]} 47. Nxe5 {[%emt 0:00:06]} Bc3 {[%emt 0:00:03]} 48. Nf3 {[%emt 0:00:08]} Nxf3 {[%emt 0:00:05]} 49. Kxf3 {[%emt 0:00:03]} Kf6 {[%emt 0:00:02]} 50. Bc4 {[%emt 0:00:11]} e5 {[%emt 0:00:05]} 51. Bd5 {[%emt 0:00:08]} g5 {[%emt 0:00:07]} 52. Kg4 {[%emt 0:00:09]} gxh4 {[%emt 0:00:08]} 53. gxh4 {[%emt 0:00:04]} Bd4 {[%emt 0:00:19]} 54. Bc6 {[%emt 0:00:22]} Bc3 {[%emt 0:00:11]} 55. h5 {[%emt 0:00:06]} Bd2 {[%emt 0:00:08]} 56. Kf3 {[%emt 0:00:03]} Kg5 {[%emt 0:00:06]} 57. Be8 {[%emt 0:00:07]} Bc1 {[%emt 0:00:11]} 58. Ke2 {[%emt 0:00:04]} Bb2 {[%emt 0:00:08]} 59. Kd3 {[%emt 0:00:06]} Bd4 {[%emt 0:00:07]} 60. Kc4 {[%emt 0:00:02]} Bb6 {[%emt 0:00:04]} 61. c3 {[%emt 0:00:09]} bxc3 {[%emt 0:00:13]} 62. Kxc3 {[%emt 0:00:02]} Kf4 {[%emt 0:00:06]} 63. Bg6 {[%emt 0:00:05]} Bc5 {[%emt 0:00:14]} 64. Kc4 {[%emt 0:00:02]} Bb4 {[%emt 0:00:04]} 65. Kd5 {[%emt 0:00:09]} Be1 {[%emt 0:00:13]} 66. Kc6 {[%emt 0:00:08]} Bd2 {[%emt 0:00:14]} 67. Bf5 {[%emt 0:00:08]} Be1 {[%emt 0:00:08]} 68. Kc5 {[%emt 0:00:05]} Bb4+ {[%emt 0:00:09]} 69. Kc4 {[%emt 0:00:06]} Be1 {[%emt 0:00:04]} 70. Kd5 {[%emt 0:00:02]} Bb4 {[%emt 0:00:04]} 71. Ke6 {[%emt 0:00:03]} Be1 {[%emt 0:00:04]} 72. Kf6 {[%emt 0:00:03]} Bh4+ {[%emt 0:00:47]} 73. Ke6 {[%emt 0:00:11]} Be1 {[%emt 0:00:09]} 74. Kf7 {[%emt 0:00:05]} Kg5 {[%emt 0:00:08]} 75. Bg6 {[%emt 0:00:24]} Bc3 {[%emt 0:00:25]} 76. Ke6 {[%emt 0:00:05]} Kf4 {[%emt 0:00:16]} 77. Kf6 {[%emt 0:00:05]} Be1 {[%emt 0:00:07]} 78. Bf5 {[%emt 0:00:10]} Bh4+ {[%emt 0:00:05]} 79. Kg6 {[%emt 0:00:02]} Bg5 {[%emt 0:00:04]} 80. Kh7 {[%emt 0:00:03]} Ke3 {[%emt 0:00:11]} 81. Kg6 {[%emt 0:03:21]} Kd4 {[%emt 0:00:10]} 82. Kf7 {[%emt 0:00:11]} Kc5 {[%emt 0:00:14]} 83. Be6 {[%emt 0:00:10]} Kb4 {[%emt 0:00:06]} 84. Bc4 {[%emt 0:00:04]} Kc5 {[%emt 0:00:05]} 85. Ke6 {[%emt 0:00:04]} Bf4 {[%emt 0:00:03]} 86. Kf5 {[%emt 0:00:11]} Kb4 {[%emt 0:00:04]} 87. Ke6 {[%emt 0:00:06]} Kc5 {[%emt 0:00:03]} 88. Kd7 {[%emt 0:00:02]} Kb4 {[%emt 0:00:05]} 89. Kc6 {[%emt 0:00:02]} Bg5 {[%emt 0:00:06]} 90. Kd5 {[%emt 0:00:04]} Bf4 {[%emt 0:00:03]} 91. Kd6 {[%emt 0:00:02]} Bg3 {[%emt 0:00:09]} 92. Kc6 {[%emt 0:00:06]} Bf4 {[%emt 0:00:05]} 93. Bg8 {[%emt 0:00:14]} Bg5 {[%emt 0:00:09]} 94. Kd6 {[%emt 0:00:04]} Bf4 {[%emt 0:00:04]} 95. Bc4 {[%emt 0:00:09]} Bg3 {[%emt 0:00:05]} 96. Ke7 {[%emt 0:00:05]} Bf4 {[%emt 0:00:08]} 97. Kf6 {[%emt 0:00:02]} Kc5 {[%emt 0:00:05]} 98. Kf5 {[%emt 0:00:05]} Kb4 {[%emt 0:00:06]} 99. Bd5 {[%emt 0:00:02]} Kc5 {[%emt 0:00:05]} 100. Ke6 {[%emt 0:00:02]} Kb4 {[%emt 0:00:05]} 101. Kd6 {[%emt 0:00:02]} Bg3 {[%emt 0:00:05]} 102. Kc7 {[%emt 0:00:05]} Bf4 {[%emt 0:00:06]} 103. Bc4 {[%emt 0:00:12]} Bg5 {[%emt 0:00:07]} 104. Kd6 {[%emt 0:00:04]} Bf4 {[%emt 0:00:05]} 105. Kd5 {[%emt 0:00:01]} Bg3 {[%emt 0:00:07]} 106. Kd6 {[%emt 0:00:06]} Bf4 {[%emt 0:00:04]} 107. Ke6 {[%emt 0:00:01]} Kc5 {[%emt 0:00:03]} 1/2-1/2